bitfinex-derivatives/quotes_BTCF0:USTF0_20251217
["timestamp","ask_amount","ask_price","bid_price","bid_amount"]
[1765993857286,0.0115472,86629.0,86618.0,0.00017321]
[1765993857488,0.0115475,86627.0,86618.0,0.00017321]
[1765993857786,0.3608,86630.0,86618.0,1e-08]
[1765993857787,0.0115484,86620.0,86618.0,1e-08]
[1765993858087,0.6943497,86630.0,86570.0,0.011555]
[1765993858088,0.0115524,86590.0,86570.0,0.011555]
[1765993858384,0.7216,86579.0,86578.0,7e-08]
[1765993858989,0.00017321,86587.0,86578.0,0.36080007]
[1765993859192,0.0165504,86605.0,86581.0,0.0115534]
[1765993859400,0.005,86605.0,86584.0,0.0115531]
[1765993859591,0.005,86605.0,86578.0,7e-08]
[1765993859592,0.0115511,86600.0,86580.0,0.2275192]
[1765993859790,0.0115511,86600.0,86591.0,0.3608]
[1765993859990,0.3608,86604.0,86581.0,0.3608]
[1765993859991,0.3608,86594.0,86581.0,0.3608]
[1765993860190,0.001,86587.0,86581.0,0.3608]
[1765993860596,0.3608,86615.0,86581.0,0.7216]
[1765993860794,0.0115486,86618.0,86602.0,0.3608]
[1765993860991,0.3608,86614.0,86602.0,0.3608]
[1765993861387,0.3608,86614.0,86595.0,0.0115516]
[1765993861591,0.00017321,86609.0,86594.0,0.3608]
[1765993862093,0.011551,86600.0,86591.0,0.00017321]
[1765993862293,0.3608,86593.0,86591.0,0.00017321]
[1765993862689,0.3608,86593.0,86580.0,0.5883192]
[1765993862996,0.3608,86593.0,86580.0,0.2275192]
[1765993863803,0.3608,86593.0,86580.0,0.2390728]
[1765993864006,0.3608,86593.0,86582.0,0.0115533]
[1765993864296,0.3608,86601.0,86583.0,0.0115532]
[1765993865290,0.3608,86594.0,86580.0,0.2390728]
[1765993865696,0.3608,86594.0,86582.0,0.0115533]
[1765993866288,0.3608,86594.0,86580.0,0.2275192]
[1765993866289,0.3608,86594.0,86584.0,0.0115531]
[1765993866700,0.3608,86594.0,86582.0,0.0125533]
[1765993867100,0.3608,86594.0,86584.0,0.011553]
[1765993867294,0.3608,86594.0,86582.0,0.001]
[1765993867494,0.3608,86594.0,86585.0,0.0115529]
[1765993868198,0.005,86605.0,86593.0,0.3608]
[1765993869397,0.005,86605.0,86593.0,0.3723518]
[1765993869703,0.005,86605.0,86593.0,0.3733518]
[1765993870103,0.005,86605.0,86593.0,0.3723518]
[1765993870302,1e-07,86605.0,86603.0,0.3608]
[1765993870502,0.00017321,86609.0,86603.0,0.3608]
[1765993870503,1e-08,86609.0,86603.0,0.3608]
[1765993870799,1e-08,86609.0,86606.0,0.0115501]
[1765993871196,0.3608,86628.0,86608.0,0.0115499]
[1765993871501,0.16404,86647.0,86618.0,0.2275192]
[1765993871702,0.16404,86647.0,86624.0,0.3608]
[1765993871894,0.0115459,86639.0,86624.0,0.3608]
[1765993872204,0.22769241,86640.0,86624.0,0.3608]
[1765993872406,0.22769241,86640.0,86622.0,0.00017321]
[1765993872407,0.0115461,86637.0,86622.0,0.00017321]
[1765993873200,0.22769241,86640.0,86622.0,0.00017321]
[1765993873400,0.22769241,86640.0,86616.0,0.3608]
[1765993873401,0.011547,86630.0,86616.0,0.35080321]
[1765993873604,0.0115466,86633.0,86616.0,0.35080321]
[1765993873805,0.0115466,86633.0,86616.0,0.36235201]
[1765993874200,0.00017321,86640.0,86625.0,0.3608]
[1765993874499,0.00017321,86640.0,86628.0,0.0115472]
[1765993874898,0.01171891,86640.0,86625.0,0.3608]
[1765993875096,0.00017321,86640.0,86625.0,0.3608]
[1765993875598,0.3723459,86638.0,86628.0,0.001]
[1765993876197,0.0115462,86636.0,86625.0,0.3608]
[1765993876395,0.3608,86638.0,86623.0,0.00017321]
[1765993876396,0.3608,86631.0,86623.0,0.00017321]
[1765993876599,0.3608,86631.0,86624.0,0.0115478]
[1765993876907,0.3608,86638.0,86626.0,0.0115475]
[1765993877203,0.3608,86638.0,86625.0,0.3608]
[1765993877413,0.0115463,86636.0,86625.0,0.3608]
[1765993877907,0.3608,86638.0,86625.0,0.3608]
[1765993878302,0.3608,86638.0,86627.0,0.0115473]
[1765993878508,0.22769241,86640.0,86625.0,0.3608]
[1765993878509,1e-08,86640.0,86637.0,0.3608]
[1765993879003,0.36080001,86640.0,86625.0,0.3608]
[1765993879507,1e-08,86640.0,86625.0,0.3608]
[1765993879806,1e-08,86640.0,86631.0,0.0115468]
[1765993880002,1e-08,86640.0,86633.0,0.0115465]
[1765993880197,1e-08,86640.0,86629.0,0.011547]
[1765993880400,0.005,86647.0,86625.0,0.3608]
[1765993880703,0.0115449,86646.0,86629.0,0.0115471]
[1765993881010,0.0115452,86644.0,86629.0,0.0115471]
[1765993881196,0.005,86647.0,86631.0,0.0115468]
[1765993881402,0.005,86647.0,86625.0,0.3608]
[1765993881597,0.005,86647.0,86632.0,0.3608]
[1765993882511,0.005,86647.0,86635.0,0.0115462]
[1765993882701,0.005,86647.0,86637.0,0.011546]
[1765993883304,0.00017321,86648.0,86632.0,0.3608]
[1765993883505,0.00017321,86648.0,86635.0,0.0115462]
[1765993883816,0.00017321,86648.0,86639.0,0.3608]
[1765993885910,0.00017321,86648.0,86632.0,0.3608]
[1765993886103,0.011545,86645.0,86632.0,0.3723467]
[1765993886505,0.0115453,86643.0,86632.0,0.3608]
[1765993886701,0.0115453,86643.0,86617.0,0.3608]
[1765993886702,0.3608,86633.0,86617.0,0.27597321]
[1765993886902,0.3608,86625.0,86610.0,0.2275192]
[1765993887106,0.3608,86611.0,86590.0,0.3608]
[1765993887307,0.2390689,86610.0,86594.0,0.0115518]
[1765993887507,0.2275192,86610.0,86590.0,0.3723523]
[1765993887702,0.00017321,86609.0,86592.0,0.011552]
[1765993887915,0.0115501,86607.0,86591.0,0.00017321]
[1765993888117,0.01155,86608.0,86591.0,0.00017321]
[1765993888314,0.01155,86608.0,86594.0,0.001]
[1765993888903,0.01155,86608.0,86591.0,0.00117321]
[1765993889315,0.00017321,86609.0,86594.0,0.0115517]
[1765993889618,0.01172311,86609.0,86591.0,0.01272531]
[1765993889814,0.0115506,86603.0,86591.0,0.00117321]
[1765993890212,0.00017321,86609.0,86591.0,0.00117321]
[1765993890213,0.3608,86604.0,86591.0,0.00117321]
[1765993890417,0.0115514,86598.0,86591.0,0.00017321]
[1765993890719,0.2390701,86601.0,86591.0,3.21e-06]
[1765993891220,0.3608,86594.0,86578.0,0.01155387]
[1765993891520,0.3608,86585.0,86578.0,0.01155387]
[1765993891716,0.3608,86585.0,86578.0,7e-08]
[1765993891922,0.7216,86585.0,86573.0,0.35136007]
[1765993892115,0.00017321,86588.0,86582.0,0.3608]
[1765993892319,1e-08,86588.0,86583.0,0.0115533]
[1765993892521,1e-08,86588.0,86582.0,0.7216]
[1765993894109,1e-08,86588.0,86573.0,0.33236007]
[1765993894110,0.3608,86583.0,86573.0,0.33236007]
[1765993894314,0.3608,86583.0,86548.0,0.3608]
[1765993894315,0.0115559,86564.0,86548.0,0.3608]
[1765993894520,0.3608,86556.0,86538.0,0.00231114]
[1765993894720,0.3608,86556.0,86537.0,0.20218914]
[1765993895021,0.3608,86556.0,86540.0,0.2275192]
[1765993895227,0.3608,86556.0,86544.0,0.0115584]
[1765993895524,0.16521,86556.0,86548.0,0.3608]
[1765993896315,2e-08,86557.0,86555.0,0.3608]
[1765993896514,0.3608,86577.0,86562.0,0.011556]
[1765993896819,0.3608,86577.0,86564.0,0.3608]
[1765993897324,0.3608,86565.0,86550.0,0.2275192]
[1765993897618,0.3608,86565.0,86523.0,0.0115612]
[1765993897619,0.011557,86555.0,86549.0,0.00017332]
[1765993897819,0.3608,86552.0,86534.0,0.0115598]
[1765993898027,0.3608,86552.0,86539.0,0.3608]
[1765993898420,0.2275192,86550.0,86539.0,0.3608]
[1765993898623,0.3608,86545.0,86532.0,0.3608]
[1765993899227,0.3608,86538.0,86530.0,0.00017332]
[1765993899823,0.3608,86538.0,86530.0,2e-08]
[1765993899824,0.3723594,86538.0,86530.0,2e-08]
[1765993900014,0.3608,86531.0,86510.0,0.39064]
[1765993900218,0.3608,86520.0,86502.0,0.20091269]
[1765993900426,0.3608,86512.0,86502.0,0.20091269]
[1765993900726,0.3608,86512.0,86503.0,0.0115639]
[1765993900920,0.00017332,86516.0,86509.0,0.3608]
[1765993901520,0.00017332,86516.0,86510.0,0.001]
[1765993902915,0.00017332,86516.0,86509.0,0.3608]
[1765993903830,2e-08,86516.0,86509.0,0.372363]
[1765993904130,2e-08,86516.0,86514.0,0.0115624]
[1765993904325,2e-08,86516.0,86510.0,0.0115629]
[1765993904719,2e-08,86516.0,86509.0,0.3608]
[1765993904921,0.00012055,86530.0,86518.0,0.0115619]
[1765993905124,0.00012055,86530.0,86524.0,0.3608]
[1765993905636,0.00012055,86530.0,86513.0,0.3608]
[1765993905841,0.00012055,86530.0,86521.0,0.3608]
[1765993906335,0.00012055,86530.0,86517.0,0.00017332]
[1765993906520,0.00012055,86530.0,86517.0,3.32e-06]
[1765993906521,0.22806411,86530.0,86517.0,3.32e-06]
[1765993906724,0.22806411,86530.0,86500.0,0.59374356]
[1765993906725,0.0115618,86520.0,86500.0,0.59374356]
[1765993907026,0.3608,86514.0,86500.0,0.3358]
[1765993907228,0.3608,86514.0,86500.0,0.56374356]
[1765993907423,0.3608,86514.0,86500.0,0.3358]
[1765993908032,0.3608,86514.0,86500.0,0.3368]
[1765993908539,0.3608,86514.0,86501.0,0.0115642]
[1765993908735,0.3608,86506.0,86500.0,0.001]
[1765993908946,0.00017332,86516.0,86500.0,0.001]
[1765993908947,0.36097332,86516.0,86504.0,0.3608]
[1765993909934,0.00017332,86516.0,86504.0,0.3723638]
[1765993910123,0.6811,86542.0,86515.0,0.3608]
[1765993910323,0.6811,86542.0,86508.0,0.0115633]
[1765993910324,0.3608,86555.0,86534.0,0.3608]
[1765993910528,0.0115575,86552.0,86541.0,0.3608]
[1765993910830,0.372357,86555.0,86541.0,0.3608]
[1765993911028,0.3608,86555.0,86541.0,0.3608]
[1765993911427,0.3608,86555.0,86541.0,0.19413]
[1765993911628,0.372357,86555.0,86541.0,0.19413]
[1765993911829,0.3618,86555.0,86541.0,0.19413]
[1765993912345,0.00017332,86557.0,86541.0,0.19413]
[1765993912346,3.32e-06,86557.0,86555.0,0.0115569]
[1765993912534,3.32e-06,86557.0,86548.0,0.3608]
[1765993912535,0.19413332,86567.0,86558.0,0.0115565]
[1765993912728,0.3608,86579.0,86565.0,0.3608]
[1765993913131,0.011554,86578.0,86565.0,0.3608]
[1765993913435,0.0115546,86574.0,86565.0,0.3608]
[1765993913635,0.0115541,86577.0,86565.0,0.3608]
[1765993913838,0.0115544,86575.0,86565.0,0.3608]
[1765993914238,0.0115542,86577.0,86565.0,0.3608]
[1765993914443,0.3608,86579.0,86565.0,0.3608]
[1765993914643,0.0115543,86575.0,86565.0,0.3608]
[1765993914844,0.3608,86579.0,86565.0,0.3608]
[1765993914845,0.001,86577.0,86565.0,0.3608]
[1765993915039,0.001,86577.0,86565.0,0.19413]
[1765993915641,0.0115557,86565.0,86547.0,0.0115579]
[1765993915842,0.3608,86561.0,86545.0,0.3608]
[1765993916233,0.3608,86561.0,86548.0,0.0115578]
[1765993916433,0.3608,86561.0,86549.0,0.0115577]
[1765993916841,0.3608,86561.0,86546.0,0.00017332]
[1765993917030,0.3608,86561.0,86551.0,0.0115574]
[1765993917234,0.3608,86568.0,86555.0,0.3608]
[1765993917635,0.0115543,86575.0,86555.0,0.3608]
[1765993917942,0.3608,86579.0,86555.0,0.3608]
[1765993917943,0.3608,86579.0,86565.0,0.3608]
[1765993918236,0.00017332,86581.0,86565.0,0.3608]
[1765993918436,0.00017332,86581.0,86574.0,0.3608]
[1765993918832,0.0115539,86579.0,86563.0,0.00017332]
[1765993919042,0.3608,86575.0,86563.0,0.00017332]
[1765993919443,0.3608,86575.0,86564.0,0.0115558]
[1765993919642,0.00017332,86581.0,86569.0,0.3608]
[1765993920934,0.00017332,86581.0,86570.0,0.23949856]
[1765993921136,0.00017332,86581.0,86570.0,0.22794356]
[1765993921337,0.00017332,86581.0,86569.0,0.3608]
[1765993921937,0.011554,86578.0,86569.0,0.3608]
[1765993922140,0.3608,86571.0,86563.0,0.00017332]
[1765993922346,0.3608,86564.0,86563.0,0.00017332]
[1765993922644,0.3608,86564.0,86563.0,3.32e-06]
[1765993922841,0.3608,86564.0,86545.0,0.38632]
[1765993923050,0.3608,86557.0,86545.0,0.42615244]
[1765993923250,0.3608,86557.0,86546.0,0.0115582]
[1765993923544,0.3608,86557.0,86550.0,0.0115576]
[1765993923748,0.3608,86576.0,86552.0,0.3608]
[1765993923946,0.00017332,86573.0,86565.0,0.0115556]
[1765993924343,2e-08,86573.0,86568.0,0.0115552]
[1765993924544,2e-08,86573.0,86571.0,0.0115548]
[1765993925441,2e-08,86573.0,86569.0,0.3608]
[1765993925749,2e-08,86573.0,86570.0,0.011555]
[1765993925945,0.33383194,86610.0,86569.0,0.3608]
[1765993926149,0.33383194,86610.0,86593.0,0.3608]
[1765993926348,0.0165504,86605.0,86593.0,0.3608]
[1765993926549,0.005,86605.0,86593.0,0.3608]
[1765993926950,0.005,86605.0,86603.0,0.3608]
[1765993927143,0.00017321,86608.0,86603.0,0.3608]
[1765993927337,0.001,86605.0,86603.0,0.3608]
[1765993927852,0.3608,86631.0,86609.0,0.0115498]
[1765993928055,0.0115465,86634.0,86617.0,0.3608]
[1765993928255,0.3608,86627.0,86617.0,0.3608]
[1765993928553,0.0115475,86626.0,86612.0,0.3608]
[1765993929143,0.3608,86627.0,86612.0,0.3608]
[1765993929755,0.3723474,86627.0,86612.0,0.3608]
[1765993929957,0.3608,86627.0,86612.0,0.3608]
[1765993930144,0.011548,86623.0,86612.0,0.3608]
[1765993930365,0.3723475,86627.0,86612.0,0.3608]
[1765993930563,0.0115478,86624.0,86612.0,0.3608]
[1765993931077,0.0115491,86615.0,86594.0,0.0115517]
[1765993931376,0.3608,86617.0,86591.0,0.3608]
[1765993931377,0.3723502,86606.0,86591.0,0.3608]
[1765993931673,0.3608,86606.0,86591.0,0.3608]
[1765993932174,0.3608,86596.0,86590.0,0.00017321]
[1765993933671,0.3608,86596.0,86590.0,0.00117321]
[1765993934065,0.3608,86596.0,86590.0,0.00017321]
[1765993935875,0.3608,86606.0,86590.0,0.00017321]
[1765993936072,0.00017321,86607.0,86597.0,0.3608]
[1765993938876,0.00017321,86607.0,86597.0,0.3723513]
[1765993939380,0.3608,86611.0,86590.0,0.00017321]
[1765993939684,0.3608,86596.0,86590.0,1e-08]
[1765993939973,0.011552,86593.0,86583.0,1e-08]
[1765993940167,0.3608,86596.0,86583.0,1e-08]
[1765993940370,0.0115523,86591.0,86583.0,1e-08]
[1765993940564,0.3608,86589.0,86583.0,1e-08]
[1765993940766,0.0115529,86586.0,86583.0,1e-08]
[1765993940970,0.3723525,86589.0,86583.0,1e-08]
[1765993941177,0.0115528,86587.0,86583.0,1e-08]
[1765993941382,0.0115526,86588.0,86583.0,1e-08]
[1765993941680,0.3608,86589.0,86583.0,1e-08]
[1765993941681,0.0115528,86587.0,86583.0,1e-08]
[1765993942074,0.3608,86589.0,86583.0,1e-08]
[1765993942277,0.0115526,86588.0,86583.0,1e-08]
[1765993942982,0.3608,86589.0,86583.0,1e-08]
[1765993943880,0.0115529,86586.0,86583.0,1e-08]
[1765993944080,0.3723525,86589.0,86583.0,1e-08]
[1765993945285,0.3608,86589.0,86583.0,1e-08]
[1765993947088,0.3723525,86589.0,86583.0,1e-08]
[1765993947786,0.0115543,86576.0,86559.0,0.3723563]
[1765993948085,0.3608,86584.0,86559.0,0.3723563]
[1765993948086,0.3608,86573.0,86559.0,0.3608]
[1765993948476,0.3608,86566.0,86557.0,0.40433311]
[1765993948683,0.3608,86566.0,86559.0,0.0115564]
[1765993949287,0.3608,86566.0,86558.0,0.0115566]
[1765993949487,0.3608,86566.0,86559.0,0.001]
[1765993950291,0.00017321,86571.0,86565.0,0.3608]
[1765993950783,0.3608,86568.0,86559.0,0.001]
[1765993950983,0.3608,86568.0,86554.0,0.00017321]
[1765993951783,0.0115569,86556.0,86554.0,1e-08]
[1765993952089,0.3608,86555.0,86533.0,0.00010737]
[1765993952287,0.57568,86561.0,86533.0,0.00010737]
[1765993952288,0.3608,86534.0,86533.0,0.00010737]
[1765993952688,0.3608,86534.0,86520.0,0.02845869]
[1765993952890,0.3608,86523.0,86518.0,0.00017331]
[1765993953187,0.3608,86534.0,86520.0,0.0115616]
[1765993953381,0.3608,86534.0,86522.0,0.0115613]
[1765993953581,0.00010913,86533.0,86522.0,0.0115613]
[1765993953986,0.00010913,86533.0,86524.0,0.011561]
[1765993954691,0.00010913,86533.0,86526.0,0.0115609]
[1765993954894,0.00010913,86533.0,86519.0,0.3608]
[1765993955087,0.00010913,86533.0,86525.0,0.011561]
[1765993955289,0.00010913,86533.0,86527.0,0.0115607]
[1765993955498,0.00017331,86536.0,86532.0,0.01156]
[1765993955696,0.00017331,86536.0,86529.0,0.3608]
[1765993956098,0.00017331,86536.0,86529.0,0.3723604]
[1765993956392,0.3608,86558.0,86544.0,0.0115584]
[1765993956896,0.3608,86558.0,86543.0,0.3608]
[1765993958587,0.00017331,86559.0,86551.0,0.3608]
[1765993959585,0.00017331,86559.0,86547.0,0.011558]
[1765993959788,0.36097331,86559.0,86547.0,0.011558]
[1765993960191,0.36097331,86559.0,86544.0,0.0115584]
[1765993960597,0.36097331,86559.0,86546.0,0.0115581]
[1765993961396,0.36097331,86559.0,86543.0,0.3608]
[1765993961594,0.36097331,86559.0,86544.0,0.001]
[1765993961794,0.36097331,86559.0,86549.0,0.0115577]
[1765993961993,0.005,86564.0,86557.0,0.3608]
[1765993963386,0.3608,86563.0,86544.0,0.001]
[1765993963684,0.3608,86547.0,86542.0,0.00017331]
[1765993964404,0.3608,86547.0,86542.0,1e-08]
[1765993964893,0.3608,86547.0,86542.0,0.00100001]
[1765993965396,0.3608,86555.0,86542.0,0.00100001]
[1765993965397,0.3608,86555.0,86544.0,0.0115584]
[1765993965789,0.3608,86555.0,86542.0,0.00100001]
[1765993965986,0.372357,86555.0,86542.0,1e-08]
[1765993966190,0.3723571,86555.0,86542.0,1e-08]
[1765993966395,0.3608,86555.0,86542.0,1e-08]
[1765993967602,0.3608,86555.0,86543.0,0.0115586]
[1765993967801,0.3608,86555.0,86545.0,0.0115583]
[1765993968103,0.3608,86555.0,86542.0,0.01155861]
[1765993968401,0.3608,86555.0,86544.0,0.0115584]
[1765993968602,0.3608,86555.0,86543.0,0.0115586]
[1765993968902,0.3608,86555.0,86542.0,1e-08]
[1765993969400,0.3608,86555.0,86542.0,0.01155871]
[1765993969802,0.3608,86555.0,86542.0,1e-08]
[1765993970595,0.3723571,86555.0,86542.0,1e-08]
[1765993971301,0.3608,86555.0,86542.0,1e-08]
[1765993971509,0.0115575,86552.0,86542.0,1e-08]
[1765993971898,0.0115586,86543.0,86542.0,1e-08]
[1765993972089,0.3723583,86546.0,86542.0,1e-08]
[1765993972290,0.0115585,86544.0,86542.0,1e-08]
[1765993973696,0.0115583,86545.0,86542.0,1e-08]
[1765993974006,0.3608,86543.0,86542.0,1e-08]
[1765993974208,0.0115606,86529.0,86513.0,0.0115625]
[1765993974395,0.0115608,86527.0,86505.0,0.3608]
[1765993974702,0.0115608,86527.0,86512.0,0.0115627]
[1765993975100,0.3608,86528.0,86512.0,0.00017331]
[1765993975293,0.3608,86528.0,86520.0,0.0115617]
[1765993975494,0.3608,86528.0,86517.0,0.0115621]
[1765993975990,0.3608,86528.0,86514.0,0.0115625]
[1765993976396,0.3608,86528.0,86514.0,0.001]
[1765993977005,0.3608,86528.0,86517.0,0.001]
[1765993977602,0.3608,86528.0,86514.0,0.001]
[1765993978004,0.3608,86528.0,86512.0,0.36097331]
[1765993978196,0.3608,86528.0,86517.0,0.001]
[1765993978393,0.0115611,86525.0,86517.0,0.001]
[1765993978597,0.3608,86528.0,86512.0,0.36097331]
[1765993978812,0.0115613,86523.0,86512.0,0.00017331]
[1765993979107,0.3608,86521.0,86512.0,0.00017331]
[1765993979504,0.3608,86521.0,86512.0,1e-08]
[1765993979807,0.0115628,86512.0,86500.0,0.005]
[1765993980108,0.3608,86511.0,86500.0,0.005]
[1765993980495,0.3608,86511.0,86496.0,0.20932221]
[1765993980496,0.3343043,86510.0,86496.0,0.20932221]
[1765993980701,0.3608,86511.0,86496.0,0.20932221]
[1765993981014,1e-08,86512.0,86510.0,0.3608]
[1765993981401,1e-08,86512.0,86500.0,0.3343043]
[1765993981402,1e-08,86512.0,86500.0,0.002]
[1765993981903,0.3608,86505.0,86496.0,0.20932221]
[1765993982305,0.3608,86505.0,86497.0,0.0115647]
[1765993982912,1e-08,86512.0,86496.0,0.20932221]
[1765993982913,1e-08,86512.0,86504.0,0.3608]
[1765993984213,1e-08,86512.0,86511.0,0.3608]
[1765993986904,0.00017331,86520.0,86511.0,0.3618]
[1765993987612,0.3608,86515.0,86501.0,0.0115642]
[1765993987814,0.3608,86505.0,86492.0,0.3608]
[1765993988004,0.3608,86505.0,86495.0,0.011565]
[1765993988313,0.3608,86515.0,86492.0,0.3608]
[1765993988314,0.3723624,86515.0,86500.0,0.3608]
[1765993988516,0.0115626,86513.0,86500.0,0.3608]
[1765993989421,0.3608,86515.0,86500.0,0.3608]
[1765993989609,0.0115625,86514.0,86500.0,0.3608]
[1765993989810,0.0115631,86510.0,86500.0,0.3608]
[1765993990211,0.001,86513.0,86500.0,0.3608]
[1765993990721,0.3608,86515.0,86500.0,0.3608]
[1765993990918,0.001,86513.0,86509.0,0.0115631]
[1765993991123,0.00017331,86520.0,86509.0,0.0115631]
[1765993991318,0.00017331,86520.0,86500.0,0.58878469]
[1765993992123,0.0115619,86518.0,86502.0,0.0115641]
[1765993992426,0.00017331,86520.0,86500.0,0.58878469]
[1765993992726,0.00017331,86520.0,86508.0,0.0115632]
[1765993992920,0.01173501,86520.0,86507.0,0.3608]
[1765993993422,0.01173501,86520.0,86507.0,0.3723634]
[1765993993723,0.01173501,86520.0,86514.0,0.3608]
[1765993993724,0.00017331,86520.0,86514.0,0.3608]
[1765993994213,0.3608,86539.0,86516.0,0.3608]
[1765993994409,0.23954379,86540.0,86514.0,0.3608]
[1765993994410,0.39013692,86555.0,86538.0,0.3608]
[1765993994727,0.3608,86555.0,86538.0,0.3608]
[1765993994912,0.22798469,86550.0,86538.0,0.3608]
[1765993995116,0.0115572,86554.0,86538.0,0.3723592]
[1765993995317,0.36097331,86555.0,86538.0,0.3723592]
[1765993995522,0.00017331,86555.0,86540.0,0.0115589]
[1765993995719,0.00117331,86555.0,86539.0,0.0115591]
[1765993995924,0.00117331,86555.0,86548.0,0.3608]
[1765993996119,0.3608,86551.0,86537.0,0.00017331]
[1765993996329,0.22798469,86550.0,86537.0,0.00017331]
[1765993996522,0.00231114,86538.0,86537.0,0.00017331]
[1765993996826,1.14e-06,86538.0,86537.0,0.00017331]
[1765993997332,0.19413,86549.0,86537.0,0.00017331]
[1765993997518,3.31e-06,86555.0,86544.0,0.3608]
[1765993998320,0.3608,86568.0,86544.0,0.3723584]
[1765993998527,0.00017331,86560.0,86544.0,0.3608]
[1765993998928,0.01172971,86560.0,86544.0,0.3608]
[1765993999227,0.001,86555.0,86544.0,0.3608]
[1765993999430,0.0115566,86558.0,86544.0,0.3608]
[1765993999631,0.0115569,86556.0,86544.0,0.3608]
[1765994000124,0.0115578,86549.0,86544.0,0.3608]
[1765994000429,0.0115579,86549.0,86537.0,0.00017331]
[1765994000724,0.3723576,86551.0,86537.0,0.00017331]
[1765994001116,0.3608,86551.0,86537.0,0.00017331]
[1765994002317,0.3608,86551.0,86540.0,0.011559]
[1765994002527,0.3608,86551.0,86537.0,0.01173261]
[1765994002722,0.3608,86551.0,86539.0,0.0115591]
[1765994003131,0.3608,86551.0,86537.0,0.00017331]
[1765994005133,0.3723576,86551.0,86537.0,0.00017331]
[1765994005524,0.3608,86551.0,86537.0,0.00017331]
[1765994005730,0.3608,86551.0,86538.0,0.0115592]
[1765994006032,0.3608,86551.0,86537.0,0.00017331]
[1765994006232,0.3608,86551.0,86537.0,0.01173271]
[1765994006628,0.00017331,86560.0,86550.0,0.3608]
[1765994007028,0.3608,86559.0,86541.0,0.0115588]
[1765994007233,0.3723565,86559.0,86541.0,0.0115588]
[1765994007733,0.3608,86559.0,86537.0,0.00017331]
[1765994008141,0.3608,86559.0,86539.0,0.0115591]
[1765994008831,0.3723565,86559.0,86541.0,0.0115588]
[1765994009529,0.3608,86559.0,86545.0,0.3608]
[1765994009924,0.00117331,86560.0,86552.0,0.3608]
[1765994010124,0.0115534,86582.0,86552.0,0.3608]
[1765994010125,0.3608,86587.0,86559.0,0.3608]
[1765994010326,0.3608,86587.0,86577.0,0.3608]
[1765994010528,0.0115519,86594.0,86577.0,0.3608]
[1765994010731,0.0115521,86592.0,86577.0,0.3608]
[1765994011034,0.20104,86599.0,86584.0,0.3608]
[1765994011035,0.0115512,86599.0,86584.0,0.3608]
[1765994011335,0.3608,86601.0,86584.0,0.3608]
[1765994011336,0.22798469,86600.0,86584.0,0.3608]
[1765994011527,0.22798469,86600.0,86584.0,0.15618]
[1765994011720,0.3608,86591.0,86577.0,0.3608]
[1765994013530,0.3608,86591.0,86584.0,0.001]
[1765994014030,0.0115533,86583.0,86576.0,0.00017331]
[1765994014231,0.3608,86577.0,86565.0,0.0115556]
[1765994014536,0.22798469,86586.0,86571.0,0.3608]
[1765994014732,0.011553,86585.0,86571.0,0.3608]
[1765994014930,0.22798469,86586.0,86571.0,0.3608]
[1765994015131,0.00017331,86587.0,86571.0,0.3608]
[1765994015627,0.0115539,86579.0,86570.0,3.31e-06]
[1765994015826,0.22798469,86581.0,86570.0,3.31e-06]
[1765994016134,0.22798469,86581.0,86543.0,0.3608]
[1765994016135,0.0115568,86557.0,86543.0,0.3608]
[1765994016325,0.3608,86549.0,86538.0,0.0911227]
[1765994016541,0.3608,86549.0,86535.0,0.3608]
[1765994016746,0.3608,86545.0,86530.0,0.3608]
[1765994016940,0.0115594,86537.0,86530.0,0.3608]
[1765994017233,0.3608,86538.0,86504.0,0.09188926]
[1765994017234,0.3608,86531.0,86525.0,0.00017331]
[1765994018236,0.0115614,86523.0,86500.0,0.0165643]
[1765994018432,0.3608,86510.0,86500.0,0.03388727]
[1765994018634,0.3608,86510.0,86501.0,0.0115642]
[1765994018831,0.3608,86510.0,86500.0,0.005]
[1765994019138,0.3608,86510.0,86504.0,0.0115638]
[1765994019338,0.3608,86510.0,86500.0,0.005]
[1765994019538,0.3608,86510.0,86501.0,0.0115642]
[1765994020236,0.3608,86510.0,86504.0,0.0115637]
[1765994020429,0.3608,86510.0,86500.0,0.0165642]
[1765994020626,0.3608,86510.0,86501.0,0.001]
[1765994021846,0.3608,86503.0,86501.0,0.001]
[1765994022235,0.3608,86503.0,86498.0,0.00231221]
[1765994022837,0.00017331,86514.0,86501.0,0.001]
[1765994023146,0.3608,86513.0,86501.0,0.001]
[1765994023443,0.3608,86513.0,86498.0,0.00231221]
[1765994024845,0.3608,86513.0,86498.0,0.01487681]
[1765994025242,0.3608,86513.0,86500.0,0.22798469]
[1765994025443,3.31e-06,86514.0,86507.0,0.3608]
[1765994025949,3.31e-06,86514.0,86498.0,0.00331221]
[1765994026147,3.31e-06,86514.0,86498.0,0.00231221]
[1765994026345,0.3608,86513.0,86498.0,0.00231221]
[1765994026544,0.22798469,86510.0,86498.0,0.00213221]
[1765994026846,0.3608,86505.0,86498.0,0.00213221]
[1765994027241,0.0115642,86502.0,86498.0,1e-08]
[1765994027543,0.3608,86505.0,86487.0,0.3608]
[1765994028633,0.3608,86505.0,86487.0,0.36097342]
[1765994031146,0.3608,86505.0,86487.0,0.37253952]
[1765994031641,0.22798469,86500.0,86487.0,0.36097342]
[1765994032249,0.22798469,86500.0,86478.0,0.3608]
[1765994032250,0.3608,86490.0,86478.0,0.3608]
[1765994032437,0.3608,86490.0,86476.0,0.0115675]
[1765994032438,0.3608,86481.0,86468.0,0.0115686]
[1765994032636,0.22798469,86480.0,86469.0,0.0115684]
[1765994032940,0.22798469,86480.0,86467.0,0.38930215]
[1765994033140,0.3608,86481.0,86467.0,0.38930215]
[1765994033141,8.726e-05,86479.0,86467.0,0.38930215]
[1765994033448,2e-08,86482.0,86478.0,0.3723672]
[1765994033634,2e-08,86482.0,86478.0,0.3608]
[1765994035145,2e-08,86482.0,86467.0,0.38930215]
[1765994035446,0.3608,86477.0,86467.0,0.3618]
[1765994035742,0.3608,86477.0,86467.0,0.3608]
[1765994035950,0.3608,86477.0,86470.0,0.0115682]
[1765994036155,2e-08,86482.0,86475.0,0.3608]